Cogmind - Beta 11 @@@ ROGUE MODE // 2022.04.11 @ 15:57:36 Player: Dytto Result: Destroyed by S-27 Virus with Autogun Performance ------------- Evolutions (3) 1500 Regions Visited (8) 1600 Robots Destroyed (19) 95 Value Destroyed (542) 542 Prototype IDs (27) 540 Alien Tech Used (0) 0 Bonus (570) 570 TOTAL SCORE: 4847 Bonus ------- Pacifist 270 Aligned with FarCom 300 Cogmind --------- Core Integrity 0/700 Matter 233/300 Energy 47/100 System Corruption 19% Temperature Cool (0) Movement Core (50) Location -7/Factory Parts ------- > --- POWER (2) -------- (None) > --- PROPULSION (4) --- (None) > --- UTILITY (4) ------ (None) > --- WEAPON (3) ------- Longsword +1 > --- INVENTORY (5) ---- Medium Insulated Plating Enhanced Autogun Gauss Rifle Improved Grenade Launcher Peak State ------------ > --- POWER ------------ Light Ion Engine Deuterium Engine > --- PROPULSION ------- Improved Titanium Leg Improved Titanium Leg Improved Titanium Leg Improved Titanium Leg > --- UTILITY ---------- Improved Melee Analysis Suite Microactuators Improved Weapon Shielding Hardened Medium Armor Plating > --- WEAPON ----------- Field Laser Gatling Laser Longsword +1 > --- INVENTORY -------- Cryofiber Web Medium Insulated Plating Gauss Rifle Improved Grenade Launcher [Rating: 50] Favorites ----------- Power Light Ion Engine Engine Light Ion Engine Power Core Nuclear Core Propulsion Improved Titanium Leg Leg Improved Titanium Leg Wheel Compact Wheel Utility Hardened Heavy Armor Plating Device Shield Generator Storage Large Battery Processor Core Analyzer Protection Hardened Heavy Armor Plating Weapon Longsword +1 Energy Gun Field Laser Energy Cannon Beam Cannon Ballistic Gun Gauss Rifle Ballistic Cannon Improved Light Cannon Launcher Improved Grenade Launcher Impact Weapon Hammer Slashing Weapon Longsword +1 Build | -11 -10 -10 -10 -9 -8 -7 -7 -7 ------- Run | Scr Mat Min Exi Min Mat Fac Was Fac Slots Evolved 6 | . . . . . 4 2 . . Power 1 | . . . . . 1 . . . Propulsion 2 | . . . . . 1 1 . . Utility 2 | . . . . . 2 . . . Weapon 1 | . . . . . . 1 . . Parts Attached 48 | 6 6 . 1 1 27 5 2 . Power 5 | 1 . . . . 4 . . . Engine 4 | 1 . . . . 3 . . . Core 1 | . . . . . 1 . . . Reactor . | . . . . . . . . . Propulsion 7 | 3 . . . . 3 1 . . Treads . | . . . . . . . . . Leg 5 | 1 . . . . 3 1 . . Wheel 2 | 2 . . . . . . . . Hover . | . . . . . . . . . Flight . | . . . . . . . . . Utility 19 | . 4 . . 1 10 3 1 . Device 6 | . 1 . . 1 2 1 1 . Storage 1 | . 1 . . . . . . . Processor 3 | . . . . . 2 1 . . Hackware . | . . . . . . . . . Protection 9 | . 2 . . . 6 1 . . Artifact . | . . . . . . . . . Weapon 17 | 2 2 . 1 . 10 1 1 . Energy Gun 2 | . . . . . . 1 1 . Energy Cannon 4 | . 1 . . . 3 . . . Ballistic Gun 6 | 2 . . . . 4 . . . Ballistic Cannon 1 | . . . . . 1 . . . Launcher 1 | . . . . . 1 . . . Special Weapon . | . . . . . . . . . Impact Weapon 2 | . 1 . . . 1 . . . Slashing Weapon 1 | . . . 1 . . . . . Piercing Weapon . | . . . . . . . . . Special Melee Weapon . | . . . . . . . . . Unidentified Prototypes . | . . . . . . . . . Parts Lost 19 | . . . . . 7 . 2 10 Power 5 | . . . . . 3 . 1 1 Propulsion 5 | . . . . . 1 . 1 3 Utility 5 | . . . . . 1 . . 4 Weapon 4 | . . . . . 2 . . 2 Highest Loss Streak 10 | . . . . . 3 . 2 10 To Critical Strikes 1 | . . . . . 1 . . . Average Slot Usage (%) 90 | . 83 100 100 100 88 99 91 74 Engine 12 | . 14 14 14 14 11 15 11 5 Core 3 | . . . . . 5 . . . Leg 15 | . . . . . 18 29 26 20 Wheel 9 | . 28 28 28 28 5 . . . Device 5 | . 9 14 14 14 2 7 10 14 Storage 3 | . 2 14 14 14 2 . . . Processor 6 | . . . . . 8 7 7 7 Protection 11 | . 2 . . . 15 14 11 5 Energy Gun 1 | . . . . . . 7 15 12 Energy Cannon 3 | . 11 14 14 14 2 . . . Ballistic Gun 3 | . 2 . . . 5 . . . Launcher 1 | . . . . . . 7 . . Impact Weapon 2 | . 13 14 7 . . . . . Slashing Weapon 7 | . . . 6 14 9 7 7 7 Naked Turns . | . . . . . . . . . Heaviest Build 43 | 9 14 14 15 16 43 36 34 18 Greatest Support 80 | 32 32 32 32 32 60 80 80 60 Greatest Overweight (x) 2 | 2 . . . . 2 . . . Average Overweight (x) . | . . . . . . . . . Largest Inventory Capacity 5 | 5 5 5 5 5 5 5 5 5 Average Capacity 5 | 5 5 5 5 5 5 5 5 5 Most Carried 5 | 3 5 5 5 5 5 5 4 4 Average Carried 4 | 1 4 5 4 4 4 3 3 3 Final Capacity 5 | 5 5 5 5 5 5 5 5 5 Final Carried 5 | 2 5 5 5 5 5 4 3 4 Class Distribution -------------------- 100% | Mutant Dominant Class ---------------- Mutant | -10/Materials Mutant | -10/Mines Mutant | -10/Exiles Mutant | -9/Mines Mutant | -8/Materials Mutant | -7/Factory Mutant | -7/Waste Mutant | -7/Factory Resources | -11 -10 -10 -10 -9 -8 -7 -7 -7 ----------- Run | Scr Mat Min Exi Min Mat Fac Was Fac Matter Collected 800 | 224 . 92 . 14 332 69 . 69 Remotely . | . . . . . . . . . Salvage Created 474 | . . . . . 364 69 . 41 Parts 30 | . . . . . 23 2 . 5 Haulers Intercepted . | . . . . . . . . . Recyclers Shooed . | . . . . . . . . . Parts Field Recycled . | . . . . . . . . . Retrieved Matter . | . . . . . . . . . Parts Self-Destructed . | . . . . . . . . . Prevented . | . . . . . . . . . Kills | -11 -10 -10 -10 -9 -8 -7 -7 -7 ------- Run | Scr Mat Min Exi Min Mat Fac Was Fac Combat Hostiles Destroyed 15 | . . . . . 13 1 . 1 Melee 8 | . . . . . 6 1 . 1 Guns 1 | . . . . . 1 . . . Cannons 3 | . . . . . 3 . . . AOE 3 | . . . . . 3 . . . Classes Destroyed 8 | . . . . . 7 . . 1 Worker 2 | . . . . . 2 . . . Builder 1 | . . . . . 1 . . . Operator 1 | . . . . . 1 . . . Swarmer 6 | . . . . . 6 . . . Grunt 3 | . . . . . 3 . . . Sentry 3 | . . . . . 2 1 . . Specialist 2 | . . . . . 2 . . . Programmer 1 | . . . . . . . . 1 Best Kill Streak 5 | . . . . . 5 1 . 1 Combat Bots Only 3 | . . . . . 3 1 . 1 Max Kills in Single Turn 2 | . . . . . 2 1 . 1 Gunslinging . | . . . . . . . . . Exploded 1 | . . . . . 1 . . . Melee 1 | . . . . . 1 1 . 1 Uniques/NPCs Destroyed . | . . . . . . . . . Combat | -11 -10 -10 -10 -9 -8 -7 -7 -7 -------- Run | Scr Mat Min Exi Min Mat Fac Was Fac Damage Taken 3109 | . . . . . 1490 10 60 1549 Core 986 | . . . . . 274 . 1 711 Absorbed by Shields 198 | . . . . . 198 . . . Redirected to Shielding 118 | . . . . . 62 3 . 53 Regen/Repaired (Parts) 23 | . . . . . 23 . . . Core Remaining (%) 83 | 100 . . . 100 50 . . . Volleys Fired 58 | . . . . . 55 . 2 1 Largest 2 | . . . . . 1 . 2 2 Hottest 143 | . . . . . 63 . 143 143 Shots Fired 61 | . . . . . 55 . 4 2 Gun 34 | . . . . . 28 . 4 2 Cannon 18 | . . . . . 18 . . . Launcher 9 | . . . . . 9 . . . Special . | . . . . . . . . . Kinetic 34 | . . . . . 34 . . . Thermal 8 | . . . . . 2 . 4 2 Explosive 9 | . . . . . 9 . . . Electromagnetic 10 | . . . . . 10 . . . Robot Hit Streak 4 | . . . . . 4 . 3 4 Robot Miss Streak 3 | . . . . . 3 . 3 2 Penetration Max . | . . . . . . . . . Secondary Targets . | . . . . . . . . . Shots Hit Robots 56 | . . . . . 46 1 2 7 Core Hits 22 | . . . . . 20 1 . 1 Critical Kills . | . . . . . . . . . Critical Parts Destroyed . | . . . . . . . . . Critical Strikes 2 | . . . . . 1 . . 1 Sever 2 | . . . . . 1 . . 1 Melee Attacks 25 | . . . . . 19 1 . 5 Impact . | . . . . . . . . . Slashing 25 | . . . . . 19 1 . 5 Piercing . | . . . . . . . . . Sneak Attacks 1 | . . . . . 1 . . . Combat Hostiles . | . . . . . . . . . Follow-up Attacks . | . . . . . . . . . Damage Inflicted 2030 | . . . . . 1661 47 70 252 Guns 420 | . . . . . 317 . 70 33 Cannons 216 | . . . . . 216 . . . Explosions 515 | . . . . . 515 . . . Melee 879 | . . . . . 613 47 . 219 Ramming . | . . . . . . . . . Kinetic 337 | . . . . . 337 . . . Thermal 139 | . . . . . 36 . 70 33 Explosive 515 | . . . . . 515 . . . Electromagnetic 160 | . . . . . 160 . . . Impact . | . . . . . . . . . Slashing 879 | . . . . . 613 47 . 219 Piercing . | . . . . . . . . . Highest Corruption 19 | . . . . . 3 1 17 19 Average Corruption 2 | . . . . . 1 1 6 17 Corruption Purged . | . . . . . . . . . Corruption Blocked . | . . . . . . . . . Effects 31 | . . . . . 18 2 5 6 Message Errors 9 | . . . . . 7 1 . 1 Matter Fused 4 | . . . . . 3 . 1 . Heat Flow Errors 2 | . . . . . 1 . . 1 Energy Discharges 6 | . . . . . 2 1 . 3 Data Loss (minor) 7 | . . . . . 3 . 3 1 Data Loss (major) 2 | . . . . . 1 . 1 . Alerts 1 | . . . . . 1 . . . Overload Shots . | . . . . . . . . . Overflow Damage 166 | . . . . . 153 . . 13 Projectiles . | . . . . . . . . . Explosions 13 | . . . . . 13 . . . Melee 153 | . . . . . 140 . . 13 Knockbacks 1 | . . . . . 1 . . . Impact . | . . . . . . . . . Kinetic 1 | . . . . . 1 . . . Secondary . | . . . . . . . . . Self-Inflicted Damage 25 | . . . . . 25 . . . Shots 1 | . . . . . 1 . . . Rammed . | . . . . . . . . . Targets Rammed . | . . . . . . . . . Kicked . | . . . . . . . . . Crushed . | . . . . . . . . . Highest Temperature 128 | . . . . . 117 . 128 57 Average Temperature 38 | . . . . . 34 . 67 33 Received Heat Transfer 423 | . . . . . 249 . . 174 Siege Activations . | . . . . . . . . . Robots Corrupted 1 | . . . . . 1 . . . Combat Hostiles . | . . . . . . . . . Parts Fried . | . . . . . . . . . Impact Corruptions . | . . . . . . . . . Robots Melted . | . . . . . . . . . Combat Hostiles . | . . . . . . . . . Parts Melted 1 | . . . . . 1 . . . Heat Transferred 298 | . . . . . 74 . 162 62 Parts Sabotaged . | . . . . . . . . . Parts Stolen . | . . . . . . . . . Parts Stripped . | . . . . . . . . . Power Chain Reactions . | . . . . . . . . . Missiles Intercepted . | . . . . . . . . . Alert | -11 -10 -10 -10 -9 -8 -7 -7 -7 ------- Run | Scr Mat Min Exi Min Mat Fac Was Fac Peak Influence 205 | . 52 19 . 6 205 138 48 54 Initial 93 | . . 19 . . 1 93 48 19 Average 44 | . 10 19 . . 45 105 37 24 Maximum Alert Level 1 | . . . . . 1 . . . Low Security (%) 99 | 100 100 100 . 100 98 100 100 100 Level 1 . | . . . . . 1 . . . Level 2 . | . . . . . . . . . Level 3 . | . . . . . . . . . Level 4 . | . . . . . . . . . Level 5 . | . . . . . . . . . High Security . | . . . . . . . . . Max Security . | . . . . . . . . . Squads Dispatched 7 | . . . . . 5 1 . 1 Investigation 1 | . . . . . . 1 . . Extermination . | . . . . . . . . . Reinforcement 6 | . . . . . 5 . . 1 Assault . | . . . . . . . . . Garrison . | . . . . . . . . . Intercept . | . . . . . . . . . Searches Triggered . | . . . . . . . . . Construction Impeded . | . . . . . . . . . Haulers Reinforced . | . . . . . . . . . Active Scanning Responses . | . . . . . . . . . Cargo Convoy Interrupts . | . . . . . . . . . Stealth | -11 -10 -10 -10 -9 -8 -7 -7 -7 --------- Run | Scr Mat Min Exi Min Mat Fac Was Fac Distress Signals 2 | . . . . . 1 . . 1 Communications Jammed . | . . . . . . . . . Distress Signals . | . . . . . . . . . Times Spotted 40 | . 2 . . . 25 1 4 8 Peak Tracking Total 6 | . 2 . . . 4 1 4 6 Tactical Retreats 8 | . . . . . 7 . . 1 Traps | -11 -10 -10 -10 -9 -8 -7 -7 -7 ------- Run | Scr Mat Min Exi Min Mat Fac Was Fac Traps Triggered 5 | . . . . . 3 2 . . Indirectly . | . . . . . . . . . Trap Hack Attempts . | . . . . . . . . . Triggered . | . . . . . . . . . Disarmed . | . . . . . . . . . Reprogrammed . | . . . . . . . . . Reused . | . . . . . . . . . Traps Extracted . | . . . . . . . . . Installed . | . . . . . . . . . Triggered . | . . . . . . . . . Machines | -11 -10 -10 -10 -9 -8 -7 -7 -7 ---------- Run | Scr Mat Min Exi Min Mat Fac Was Fac Machines Disabled . | . . . . . . . . . Max in Single Turn . | . . . . . . . . . Machines Sabotaged . | . . . . . . . . . Garrisons Compromised . | . . . . . . . . . Overloaded Fab Kills . | . . . . . . . . . Hacking | -11 -10 -10 -10 -9 -8 -7 -7 -7 --------- Run | Scr Mat Min Exi Min Mat Fac Was Fac Machines Accessed 13 | . 3 . 1 1 4 4 . . Terminals 9 | . 3 . . 1 3 2 . . Fabricators 1 | . . . . . . 1 . . Repair Stations 2 | . . . . . 1 1 . . Recycling Units . | . . . . . . . . . Scanalyzers . | . . . . . . . . . Garrison Access . | . . . . . . . . . Total Hacks 32 | . 7 . 1 3 15 6 . . Successful 19 | . 3 . 1 3 10 2 . . Failed 13 | . 4 . . . 5 4 . . Catastrophic 2 | . 2 . . . . . . . Database Lockouts . | . . . . . . . . . Manual 8 | . 4 . 1 2 1 . . . Terminals 23 | . 7 . . 3 10 3 . . Fabricators 2 | . . . . . . 2 . . Repair Stations 6 | . . . . . 5 1 . . Recycling Units . | . . . . . . . . . Scanalyzers . | . . . . . . . . . Garrison Access . | . . . . . . . . . Terminal Hacks 14 | . 3 . 1 2 6 2 . . Record 8 | . 1 . . 2 3 2 . . Robot Analysis 1 | . . . . . 1 . . . Prototype ID Bank 2 | . 1 . . . 1 . . . Alert Level 1 | . 1 . . . . . . . Patrol Status 1 | . . . . . 1 . . . EX-Prototype ID Bank 1 | . . . 1 . . . . . Fabricator Hacks . | . . . . . . . . . Repair Station Hacks 3 | . . . . . 3 . . . Scan Component 2 | . . . . . 2 . . . Repair 1 | . . . . . 1 . . . Recycling Unit Hacks . | . . . . . . . . . Scanalyzer . | . . . . . . . . . Garrison Access Hacks . | . . . . . . . . . Unauthorized Hacks 2 | . . . . 1 1 . . . Terminals 2 | . . . . 1 1 . . . Assimilate 2 | . . . . 1 1 . . . Fabricators . | . . . . . . . . . Repair Stations . | . . . . . . . . . Recycling Units . | . . . . . . . . . Scanalyzers . | . . . . . . . . . Garrison Access . | . . . . . . . . . Data Cores Recovered . | . . . . . . . . . Used . | . . . . . . . . . Hacking Detections 10 | . 3 . . . 4 3 . . Full Trace Events 2 | . . . . . 1 1 . . Feedback Events 1 | . . . . . . 1 . . Corruption 1 | . . . . . . 1 . . Feedback Blocked . | . . . . . . . . . Robot Schematics Acquired . | . . . . . . . . . Robots Built . | . . . . . . . . . Authchips . | . . . . . . . . . Time . | . . . . . . . . . Total Robot Build Rating . | . . . . . . . . . Part Schematics Acquired . | . . . . . . . . . Parts Built . | . . . . . . . . . Authchips . | . . . . . . . . . Time . | . . . . . . . . . Total Part Build Rating . | . . . . . . . . . Parts Repaired 1 | . . . . . 1 . . . Time 32 | . . . . . 32 . . . Parts Recycled . | . . . . . . . . . Recycled Matter . | . . . . . . . . . Retrieved Matter . | . . . . . . . . . Retrieved Components . | . . . . . . . . . Parts Scanalyzed . | . . . . . . . . . Part Schematics Acquired . | . . . . . . . . . Parts Damaged . | . . . . . . . . . Bothacking | -11 -10 -10 -10 -9 -8 -7 -7 -7 ------------ Run | Scr Mat Min Exi Min Mat Fac Was Fac Used RIF Installer . | . . . . . . . . . Robots Hacked . | . . . . . . . . . Non-combat . | . . . . . . . . . Combat . | . . . . . . . . . Robot Hacks Applied . | . . . . . . . . . Relay Couplers Released . | . . . . . . . . . Fabnet Peak Effective % . | . . . . . . . . . Robots Rewired . | . . . . . . . . . Allies Hacked . | . . . . . . . . . Hacks Repelled . | . . . . . . . . . Allies | -11 -10 -10 -10 -9 -8 -7 -7 -7 -------- Run | Scr Mat Min Exi Min Mat Fac Was Fac Total Allies . | . . . . . . . . . Largest Group . | . . . . . . . . . Highest-Rated Group . | . . . . . . . . . Highest-Rated Ally . | . . . . . . . . . Total Orders . | . . . . . . . . . Ally Attacks . | . . . . . . . . . Total Damage . | . . . . . . . . . Kills . | . . . . . . . . . Allies Corrupted . | . . . . . . . . . Allies Melted . | . . . . . . . . . Intel | -11 -10 -10 -10 -9 -8 -7 -7 -7 ------- Run | Scr Mat Min Exi Min Mat Fac Was Fac Robot Analysis Total 1 | . . . . . 1 . . . Derelict Logs Recovered 2 | . . 2 . . . . . . Drone Launches . | . . . . . . . . . Drone Recoveries . | . . . . . . . . . Exploration | -11 -10 -10 -10 -9 -8 -7 -7 -7 ------------- Run | Scr Mat Min Exi Min Mat Fac Was Fac Turns Passed 3875 | 74 212 225 221 109 2344 392 121 177 Spaces Moved 2301 | 67 196 226 219 106 1094 249 80 64 Core 20 | 20 . . . . . . . . Treads . | . . . . . . . . . Legs 955 | . . . . . 562 249 80 64 Wheels 1326 | 47 196 226 219 106 532 . . . Hover . | . . . . . . . . . Flight . | . . . . . . . . . Fastest Speed 50 | 50 100 100 100 100 100 130 130 130 Average Speed 113 | 90 100 100 100 100 117 130 130 130 Slowest Speed 200 | 150 100 100 100 100 200 130 130 130 Overloaded Moves . | . . . . . . . . . Propulsion Burnouts . | . . . . . . . . . Robots Hopped . | . . . . . . . . . Cave-ins Triggered . | . . . . . . . . . Exploration Rate (%) 32 | 4 32 46 61 32 41 6 70 2 Regions Visited 8 Branch Regions 3 Pre-discovered Areas 1 | . . 1 . . . . . . Known Exits Taken . | . . . . . . . . . Unknown Exits Taken 6 | 1 1 1 1 1 1 . . . Scrap Searched 1 | . . . . 1 . . . . Spaces Dug . | . . . . . . . . . Terrain Destroyed 95 | . . . . . 95 . . . Melee . | . . . . . . . . . Projectile 2 | . . . . . 2 . . . AOE 93 | . . . . . 93 . . . Terrain Rammed . | . . . . . . . . . Walls Destroyed . | . . . . . . . . . Machines Disabled . | . . . . . . . . . Actions | -11 -10 -10 -10 -9 -8 -7 -7 -7 --------- Run | Scr Mat Min Exi Min Mat Fac Was Fac Total 3488 | 78 212 225 221 109 2080 318 92 153 Wait 1007 | . . . . . 858 58 9 82 Move 2294 | 66 195 225 218 105 1093 249 79 64 Hop . | . . . . . . . . . Pick Up 24 | 3 4 . . 1 13 2 . 1 Fast Attach 29 | 6 5 . 1 1 13 3 . . Attach 11 | . 1 . . . 7 2 1 . Detach 8 | 1 3 . 1 . 1 2 . . Swap 8 | . . . . . 7 . 1 . Drop 24 | 2 4 . 1 2 14 1 . . Fire 58 | . . . . . 55 . 2 1 Melee 25 | . . . . . 19 1 . 5 Ram . | . . . . . . . . . Kick . | . . . . . . . . . Crush . | . . . . . . . . . Escape Stasis . | . . . . . . . . . Rewire . | . . . . . . . . . Trap . | . . . . . . . . . Miscellaneous . | . . . . . . . . . Route ------- -11/Scrapyard -10/Materials -10/Mines -10/Exiles -9/Mines -8/Materials -7/Factory -7/Waste -7/Factory History --------- Turn | Location | Event 8 | -11/Scrapyard | Discovered new exit (range 16) 75 | -11/Scrapyard | Entered Materials 274 | -10/Materials | Discovered new exit (range 7) 287 | -10/Materials | Entered Mines 293 | -10/Mines | Met a Derelict bent on vengeance 311 | -10/Mines | Build established: Mutant 313 | -10/Mines | Learned location of Mines (-9) 366 | -10/Mines | Found a hidden stash of uninstalled traps 432 | -10/Mines | Learned Materials terminal intel 451 | -10/Mines | A weapon hastily lodged in a ceiling crevice suddenly fell to the ground 507 | -10/Mines | Deemed a non-threat by the Exiles lab entrance 508 | -10/Mines | Discovered new exit (range 5) 512 | -10/Mines | Entered Exiles 540 | -10/Exiles | Met 8R-AWN 557 | -10/Exiles | Met EX-HEX 590 | -10/Exiles | Met EX-BIN 602 | -10/Exiles | Aligned with FarCom system 603 | -10/Exiles | Given EX-Vault access code 626 | -10/Exiles | Opened EX-Vault 635 | -10/Exiles | Found Longsword +1 658 | -10/Exiles | Warned to stay clear of 0b10 Research branches 687 | -10/Exiles | Met EX-DEC 722 | -10/Exiles | Discovered new exit (range 14) 733 | -10/Exiles | Left Exiles lab with Longsword +1 733 | -10/Exiles | Entered Mines 830 | -9/Mines | Discovered new exit (range 6) 842 | -9/Mines | Entered Materials 842 | -8/Materials | Evolved 4 slots: Power x1, Propulsion x1, Utility x2 843 | -8/Materials | Loaded intel: 12 terminal locations 1328 | -8/Materials | Repaired Shield Generator 1505 | -8/Materials | Lost 3 parts (1p1u1w) 3181 | -8/Materials | Discovered new exit (range 3) 3186 | -8/Materials | Entered Factory 3186 | -7/Factory | Evolved 2 slots: Propulsion x1, Weapon x1 3455 | -7/Factory | Discovered new exit (range 15) 3578 | -7/Factory | Sucked down chute 3578 | -7/Factory | Entered Waste 3593 | -7/Waste | EMP discharged 3598 | -7/Waste | Spotted C-40 Crusher 3614 | -7/Waste | Spotted C-40 Crusher 3625 | -7/Waste | Spotted C-40 Crusher 3637 | -7/Waste | Crushed by Compactor (1 part destroyed, 1 dropped) 3644 | -7/Waste | Spotted C-40 Crusher 3671 | -7/Waste | Discovered new exit (range 16) 3693 | -7/Waste | EMP discharged 3693 | -7/Waste | System corruption reached 10% 3699 | -7/Waste | Entered Factory 3864 | -7/Factory | Core integrity fell below 50% 3873 | -7/Factory | Core integrity fell below 20% 3876 | -7/Factory | Destroyed by S-27 Virus with Autogun Last Messages --------------- 03850_ R-06 Scavenger collects Target Analyzer. 03852_ Acquired 41 matter. 03853_ Gatling Laser destroyed. 03854_ Imp. Titanium Leg destroyed. 03856_ S-27 Virus destroyed. 03857_ Acquired 28 matter. 03858_ R-06 Scavenger collects Lgt. Nuclear Core. 03859_ Imp. Titanium Leg destroyed. 03863_ R-06 Scavenger destroyed. 03865_ Microactuators destroyed. 03867_ R-06 Scavenger collects Unknown Wheel. 03868_ Cryofiber Web destroyed. 03869_ K-01 Serf collects debris. 03871_ Imp. Melee Analysis Suite destroyed. 03871_ K-01 Serf collects debris. 03871_ R-06 Scavenger collects Unknown Wheel. 03873_ K-01 Serf collects debris. 03874_ R-06 Scavenger collects Lgt. Ion Engine. 03874_ K-01 Serf collects debris. 03875_ System corrupted: Energy discharge (-17). Map ----- +----------------------------------------------------+ | ???#""" # #####??????????????????????????? | | ???# """ # #??????????????????????????????? | | ???# """ # #??????????????????????????????? | | ???# """ # #??????????????????????????????? | | ???# # #??????????????????????????????? | | ???######+### #??????????????????????????????? | | ????????# #??????????????????????????????? | | ????????# #??????????????????????????????? | | ????????# """ ##############?????????????????? | | ????????# """ # [ ] ?????????????????? | | ????????# " # ?????????????????? | | ????????# "F" # """ """ """ ?????????????????? | | ???????# """ + """ """ """??????????????????? | | ???????+ # """ """ """ #????????????????? | | ???????# # " #????????????????? | | ???????# ######+######+?????????????????? | | ???????# ########????#%#???????????????????????? | | ???????# #???????????# #???????????????????????? | | ???????# #???????????# #???????????????????????? | | ???????# #???????????# #??????######???????????? | | ??????? ?p???########t###### +???????????? | | ???????? k u #???????????????? | | ???????? ?????## ##### #???????????????? | | ?????????Y?????????????#!s Y #####???????????? | | ???????????????????????#s k + "?????????? | | ???????????????????????#=@rr #####???????????? | | ???????????????????????#s######k##???????????????? | | ???????????????????????# #??????#????????????????? | | ???????????????????????# #???????????????????????? | | ???????????????????????# #???????????????????????? | | ???????????????????????# #???????????????????????? | | ???????????????????????# #???????????????????????? | | ???????????????????????# #???????????????????????? | | ???????????????????????# #???????????????????????? | | ???????????????????????#+#???????????????????????? | | ?????????????????????????????????????????????????? | | ?????????????????????????????????????????????????? | | ?????????????????????????????????????????????????? | | ?????????????????????????????????????????????????? | | ?????????????????????????????????????????????????? | | ?????????????????????????????????????????????????? | | ?????????????????????????????????????????????????? | | ?????????????????????????????????????????????????? | | ?????????????????????????????????????????????????? | | ?????????????????????????????????????????????????? | | ?????????????????????????????????????????????????? | | ?????????????????????????????????????????????????? | | ?????????????????????????????????????????????????? | | ?????????????????????????????????????????????????? | | ?????????????????????????????????????????????????? | +----------------------------------------------------+ Best States ------------- Heat Dissipation 34 Energy Generation 19 Energy Capacity 475 Matter Stores 300 Matter Capacity 300 Sight Range 18 Robot Scan Range 14 Terrain Scan Density 10 Base Temperature (-) 100 Armor Coverage 600 Utility Shielding 33 Weapon Shielding 66 Melee Speed Boost 20 Evasion (%) 55 Melee Accuracy 6 Core Analysis 6 Item Schematics ----------------- None Robot Schematics ------------------ None Fabricated ------------ Nothing Alien Tech Used ----------------- None Achievements -------------- True Hacker Challenges ------------ None Game ------ Seed RelayCorruptionGreatsword Manual? 0 Play Time 00:33:49 Cumulative 18.8 hours Start 2022.04.11 @ 15:24:38 End 2022.04.11 @ 15:57:36 Sessions 1 Manual Loads 0 Difficulty Rogue Special Mode None Game No. 66 Rogue 30 Adventurer 36 Explorer 0 Win Type - Total 0 Types 0/0/0/0/0/0/0/0/0 Lore% 15 Gallery% 21 Achievement% 15 Wizard Run 0 Options --------- ASCII 0 Keyboard 1 Movement Numpad Keybinds 0 Fullscreen 2 Font 18/X11Bold Map View 76x50 Tactical HUD 1 Map Filters NONE Filters NONE Steam 1 RUN: f21b3527-c15d-4e47-9cd1-720a3de42354